fUSD/lending_fUSD_20241215
["ID","MTS","AMOUNT","RATE_DAILY","PERIOD"]
[345475844,1734281450065,-153.0,0.00019698,2]
[345475845,1734281450076,-153.0,0.00019698,2]
[345475846,1734281450086,-153.0,0.00019698,2]
[345475847,1734281450096,-153.0,0.00019698,2]
[345475848,1734281450107,-153.0,0.00019698,2]
[345475849,1734281450116,-153.0,0.00019698,2]
[345475850,1734281450127,-153.0,0.00019698,2]
[345475851,1734281450136,-153.0,0.00019698,2]
[345475852,1734281450146,-153.0,0.00019698,2]
[345475853,1734281450155,-153.0,0.00019698,2]
[345475854,1734281450164,-153.0,0.00019698,2]
[345475855,1734281450174,-153.0,0.00019698,2]
[345475856,1734281450183,-153.0,0.00019698,2]
[345475857,1734281450192,-153.0,0.00019698,2]
[345475858,1734281450204,-153.0,0.00019698,2]
[345475859,1734281450213,-153.0,0.00019698,2]
[345475860,1734281450223,-153.0,0.00019698,2]
[345475861,1734281450232,-153.0,0.00019698,2]
[345475862,1734281450241,-153.0,0.00019698,2]
[345475863,1734281450252,-153.0,0.00019698,2]
[345475864,1734281450261,-153.0,0.00019698,2]
[345475865,1734281450270,-153.0,0.00019698,2]
[345475866,1734281450279,-500.0,0.00019699,3]
[345475867,1734281450288,-500.0,0.00019699,3]
[345475868,1734281450298,-645.03,0.00019699,3]
[345475869,1734281450307,-500.0,0.00019699,3]
[345475870,1734281450316,-500.0,0.00019699,3]
[345475871,1734281450326,-500.0,0.00019699,3]
[345475872,1734281450336,-500.0,0.00019699,3]
[345475873,1734281450346,-500.0,0.00019699,3]
[345475874,1734281450356,-580.34,0.00019699,3]
[345475875,1734281450366,-500.0,0.00019699,3]
[345475876,1734281450376,-866.25,0.00019699,3]
[345475877,1734281450387,-150.0,0.00019699,4]
[345475878,1734281450397,-3234.12310227,0.000197,2]
[345475879,1734281450407,-1837.18598447,0.00019726,2]
[345475880,1734281450417,-3281.52296355,0.00019726,2]
[345475881,1734281450426,-150.0,0.00019726,4]
[345475882,1734281450435,-150.0,0.00019727,4]
[345475883,1734281450445,-150.0,0.0001973,2]
[345475884,1734281450454,-150.0,0.00019736,2]
[345475885,1734281450464,-150.0,0.00019754,4]
[345475886,1734281450474,-1837.18598447,0.0001976,2]
[345475887,1734281450484,-3281.52296355,0.00019761,2]
[345475888,1734281450493,-150.0,0.00019762,2]
[345475889,1734281450503,-150.0,0.00019762,4]
[345475890,1734281450513,-150.0,0.00019763,2]
[345475891,1734281450522,-200.0,0.00019764,2]
[345475892,1734281450532,-200.0,0.00019765,2]
[345475893,1734281450542,-150.0,0.00019773,4]
[345475894,1734281450551,-150.0,0.00019781,4]
[345475895,1734281450561,-20000.0,0.0001979,7]
[345475896,1734281450570,-500.0,0.00019795,3]
[345475897,1734281450581,-1837.18598447,0.00019795,2]
[345475898,1734281450590,-3281.52296355,0.00019796,2]
[345475899,1734281450600,-324.72,0.00019796,3]
[345475900,1734281450610,-199.28,0.00019796,3]
[345475901,1734281450620,-500.0,0.00019796,3]
[345475902,1734281450629,-500.0,0.00019796,3]
[345475903,1734281450640,-500.0,0.00019796,3]
[345475904,1734281450650,-500.0,0.00019796,3]
[345475905,1734281450661,-500.0,0.00019796,3]
[345475906,1734281450671,-500.0,0.00019796,3]
[345475907,1734281450680,-500.0,0.00019796,3]
[345475908,1734281450690,-500.0,0.00019796,3]
[345475909,1734281450701,-500.0,0.00019796,3]
[345475910,1734281450711,-500.0,0.00019796,3]
[345475911,1734281450721,-500.0,0.00019796,3]
[345475912,1734281450731,-500.0,0.00019796,3]
[345475913,1734281450741,-500.0,0.00019796,3]
[345475914,1734281450751,-500.0,0.00019796,3]
[345475915,1734281450762,-500.0,0.00019796,3]
[345475916,1734281450771,-500.0,0.00019796,3]
[345475917,1734281450781,-193.34208712,0.00019796,3]
[345475918,1734281450791,-587.17277861,0.00019796,3]
[345475919,1734281450801,-500.0,0.00019796,3]
[345475920,1734281450815,-500.0,0.00019796,3]
[345475921,1734281450826,-500.0,0.00019796,3]
[345475922,1734281450836,-500.0,0.00019796,3]
[345475923,1734281450847,-500.0,0.00019796,3]
[345475924,1734281450858,-500.0,0.00019796,3]
[345475925,1734281450867,-576.75,0.00019796,3]
[345475926,1734281450876,-500.0,0.00019796,3]
[345475927,1734281450889,-500.0,0.00019796,3]
[345475928,1734281450901,-500.0,0.00019796,3]
[345475929,1734281450911,-170.18,0.00019796,3]
[345475930,1734281450921,-500.0,0.00019796,3]
[345475931,1734281450931,-500.0,0.00019796,3]
[345475932,1734281450942,-500.0,0.00019796,3]
[345475933,1734281450951,-319.24933645,0.00019796,3]
[345475934,1734281450960,-500.0,0.00019796,3]
[345475935,1734281450970,-500.0,0.00019796,3]
[345475936,1734281450979,-500.0,0.00019796,3]
[345475937,1734281450988,-500.0,0.00019796,3]
[345475938,1734281450998,-500.0,0.00019796,3]
[345475939,1734281451010,-517.07,0.00019796,3]
[345475940,1734281451019,-500.0,0.00019796,3]
[345475941,1734281451028,-500.0,0.00019796,3]
[345475942,1734281451038,-500.0,0.00019796,3]
[345475943,1734281451047,-500.0,0.00019796,3]
[345475944,1734281451057,-500.0,0.00019796,3]
[345475945,1734281451066,-500.0,0.00019796,3]
[345475946,1734281451075,-500.0,0.00019796,3]
[345475947,1734281451084,-2075.12,0.00019796,3]
[345475948,1734281451094,-500.0,0.00019796,3]
[345475949,1734281451103,-500.0,0.00019796,3]
[345475950,1734281451113,-500.0,0.00019796,3]
[345475951,1734281451122,-500.0,0.00019796,3]
[345475952,1734281451132,-565.27,0.00019796,3]
[345475953,1734281451141,-242.42,0.00019796,3]
[345475954,1734281451151,-527.39,0.00019796,3]
[345475955,1734281451160,-500.0,0.00019796,3]
[345475956,1734281451169,-500.0,0.00019796,3]
[345475957,1734281451179,-500.0,0.00019796,3]
[345475958,1734281451188,-500.0,0.00019796,3]
[345475959,1734281451197,-500.0,0.00019796,3]
[345475960,1734281451206,-500.0,0.00019796,3]
[345475961,1734281451216,-518.18,0.00019796,3]
[345475962,1734281451225,-500.0,0.00019796,3]
[345475963,1734281451235,-500.0,0.00019796,3]
[345475964,1734281451244,-500.0,0.00019796,3]
[345475965,1734281451256,-500.0,0.00019796,3]
[345475966,1734281451266,-500.0,0.00019796,3]
[345475967,1734281451275,-500.0,0.00019796,3]
[345475968,1734281451284,-500.0,0.00019796,3]
[345475969,1734281451294,-571.33,0.00019796,3]
[345475970,1734281451303,-500.0,0.00019796,3]
[345475971,1734281451313,-500.0,0.00019796,3]
[345475972,1734281451323,-200.0,0.00019796,3]
[345475973,1734281451332,-500.0,0.00019796,3]
[345475974,1734281451342,-500.0,0.00019796,3]
[345475975,1734281451351,-500.0,0.00019796,3]
[345475976,1734281451361,-500.0,0.00019796,3]
[345475977,1734281451371,-500.0,0.00019796,3]
[345475978,1734281451381,-500.0,0.00019796,3]
[345475979,1734281451391,-500.0,0.00019796,3]
[345475980,1734281451401,-500.0,0.00019796,3]
[345475981,1734281451410,-500.0,0.00019796,3]
[345475982,1734281451419,-500.0,0.00019796,3]
[345475983,1734281451430,-500.0,0.00019796,3]
[345475984,1734281451439,-500.0,0.00019796,3]
[345475985,1734281451449,-500.0,0.00019796,3]
[345475986,1734281451458,-500.0,0.00019796,3]
[345475987,1734281451468,-502.16699071,0.00019796,3]
[345475988,1734281451478,-500.0,0.00019796,3]
[345475989,1734281451488,-522.42,0.00019796,3]
[345475990,1734281451497,-500.0,0.00019796,3]
[345475991,1734281451508,-500.0,0.00019796,3]
[345475992,1734281451518,-500.0,0.00019796,3]
[345475993,1734281451527,-500.0,0.00019796,3]
[345475994,1734281451537,-500.0,0.00019796,3]
[345475995,1734281451547,-604.36,0.00019796,3]
[345475996,1734281451559,-500.0,0.00019796,3]
[345475997,1734281451571,-500.0,0.00019796,3]
[345475998,1734281451581,-500.0,0.00019796,3]
[345475999,1734281451590,-500.0,0.00019796,3]
[345476000,1734281451600,-500.0,0.00019796,3]
[345476001,1734281451611,-500.0,0.00019796,3]
[345476002,1734281451621,-500.0,0.00019796,3]
[345476003,1734281451632,-500.0,0.00019796,3]
[345476004,1734281451642,-500.0,0.00019796,3]
[345476005,1734281451652,-500.0,0.00019796,3]
[345476006,1734281451662,-500.0,0.00019796,3]
[345476007,1734281451672,-500.0,0.00019796,3]
[345476008,1734281451682,-500.0,0.00019796,3]
[345476009,1734281451692,-500.0,0.00019796,3]
[345476010,1734281451702,-500.0,0.00019796,3]
[345476011,1734281451711,-500.0,0.00019796,3]
[345476012,1734281451720,-500.0,0.00019796,3]
[345476013,1734281451730,-500.0,0.00019796,3]
[345476014,1734281451741,-500.0,0.00019796,3]
[345476015,1734281451753,-500.0,0.00019796,3]
[345476016,1734281451764,-500.0,0.00019796,3]
[345476017,1734281451773,-500.0,0.00019796,3]
[345476018,1734281451784,-500.0,0.00019796,3]
[345476019,1734281451794,-500.0,0.00019796,3]
[345476020,1734281451807,-500.0,0.00019796,3]
[345476021,1734281451818,-500.0,0.00019796,3]
[345476022,1734281451828,-500.0,0.00019796,3]
[345476023,1734281451838,-507.96,0.00019796,3]
[345476024,1734281451848,-500.0,0.00019796,3]
[345476025,1734281451859,-500.0,0.00019796,3]
[345476026,1734281451869,-1545.75,0.00019796,3]
[345476027,1734281451879,-500.0,0.00019796,3]
[345476028,1734281451890,-500.0,0.00019796,3]
[345476029,1734281451899,-500.0,0.00019796,3]
[345476030,1734281451909,-500.0,0.00019796,3]
[345476031,1734281451920,-500.0,0.00019796,3]
[345476032,1734281451930,-500.0,0.00019796,3]
[345476033,1734281451940,-500.0,0.00019796,3]
[345476034,1734281451949,-500.0,0.00019796,3]
[345476035,1734281451959,-500.0,0.00019796,3]
[345476036,1734281451968,-500.0,0.00019796,3]
[345476037,1734281451977,-500.0,0.00019796,3]
[345476038,1734281451987,-500.0,0.00019796,3]
[345476039,1734281451996,-500.0,0.00019796,3]
[345476040,1734281452007,-500.0,0.00019796,3]
[345476041,1734281452016,-500.0,0.00019796,3]
[345476042,1734281452026,-500.0,0.00019796,3]
[345476043,1734281452037,-500.0,0.00019796,3]
[345476044,1734281452047,-500.0,0.00019796,3]
[345476045,1734281452057,-500.0,0.00019796,3]
[345476046,1734281452066,-500.0,0.00019796,3]
[345476047,1734281452076,-839.16,0.00019796,3]
[345476048,1734281452087,-469.99,0.00019796,3]
[345476049,1734281452096,-311.1122005,0.00019796,3]
[345476050,1734281452106,-500.0,0.00019796,3]
[345476051,1734281452116,-500.0,0.00019796,3]
[345476052,1734281452127,-500.0,0.00019796,3]
[345476053,1734281452138,-500.0,0.00019796,3]
[345476054,1734281452149,-500.0,0.00019796,3]
[345476055,1734281452159,-500.0,0.00019796,3]
[345476056,1734281452171,-500.0,0.00019796,3]
[345476057,1734281452182,-500.0,0.00019796,3]
[345476058,1734281452193,-500.0,0.00019796,3]
[345476059,1734281452203,-500.0,0.00019796,3]
[345476060,1734281452214,-500.0,0.00019796,3]
[345476061,1734281452340,-500.0,0.00019796,3]
[345476062,1734281452350,-500.0,0.00019796,3]
[345476063,1734281452360,-500.0,0.00019796,3]
[345476064,1734281452370,-500.0,0.00019796,3]
[345476065,1734281452379,-500.0,0.00019796,3]
[345476066,1734281452389,-500.0,0.00019796,3]
[345476067,1734281452398,-501.75046619,0.00019796,2]
[345476068,1734281452407,-626.97,0.00019796,3]
[345476069,1734281452417,-500.0,0.00019796,3]
[345476070,1734281452426,-500.0,0.00019796,3]
[345476071,1734281452435,-500.0,0.00019796,3]
[345476072,1734281452445,-519.74,0.00019796,3]
[345476073,1734281452455,-500.0,0.00019796,3]
[345476074,1734281452466,-500.0,0.00019796,3]
[345476075,1734281452475,-506.31643346,0.00019796,3]
[345476076,1734281452484,-500.0,0.00019796,3]
[345476077,1734281452493,-500.0,0.00019796,3]
[345476078,1734281452505,-500.0,0.00019796,3]
[345476079,1734281452514,-500.0,0.00019796,3]
[345476080,1734281452524,-500.0,0.00019796,3]
[345476081,1734281452534,-500.0,0.00019796,3]
[345476082,1734281452544,-500.0,0.00019796,3]
[345476083,1734281452554,-473.43,0.00019797,3]
[345476084,1734281452564,-160.11,0.00019797,3]
[345476085,1734281452574,-302.29611389,0.00019797,3]
[345476086,1734281452584,-158.04,0.00019797,3]
[345476087,1734281452593,-500.0,0.00019797,3]
[345476088,1734281452603,-183.96,0.00019797,3]
[345476089,1734281452613,-346.41,0.00019797,3]
[345476090,1734281452622,-585.71,0.00019797,3]
[345476091,1734281452631,-500.0,0.00019797,3]
[345476092,1734281452641,-500.0,0.00019797,3]
[345476093,1734281452651,-500.0,0.00019797,3]
[345476094,1734281452660,-188.94,0.00019797,3]
[345476095,1734281452670,-500.0,0.00019797,3]
[345476096,1734281452679,-500.0,0.00019797,3]
[345476097,1734281452689,-187.08,0.00019797,3]
[345476098,1734281452699,-500.0,0.00019797,3]
[345476099,1734281452708,-189.11,0.00019797,3]
[345476100,1734281452718,-501.45,0.00019797,3]
[345476101,1734281452727,-384.38748054,0.00019797,3]
[345476102,1734281452738,-500.0,0.00019797,3]
[345476103,1734281452749,-538.26,0.00019797,3]
[345476104,1734281452759,-161.5,0.00019797,3]
[345476105,1734281452768,-500.0,0.00019797,3]
[345476106,1734281452777,-230.45,0.00019797,3]
[345476107,1734281452787,-500.0,0.00019797,3]
[345476108,1734281452796,-279.73,0.00019797,3]
[345476109,1734281452808,-173.77,0.00019797,3]
[345476110,1734281452818,-537.01,0.00019797,3]
[345476111,1734281452827,-449.15,0.00019797,3]
[345476112,1734281452837,-369.82,0.00019797,3]
[345476113,1734281452847,-347.79,0.00019797,3]
[345476114,1734281452856,-500.0,0.00019797,3]
[345476115,1734281452865,-514.37,0.00019797,3]
[345476116,1734281452875,-211.62,0.00019797,3]
[345476117,1734281452884,-500.0,0.00019797,3]
[345476118,1734281452893,-499.51,0.00019797,3]
[345476119,1734281452902,-500.0,0.00019797,3]
[345476120,1734281452913,-500.0,0.00019797,3]
[345476121,1734281452923,-500.0,0.00019797,3]
[345476122,1734281452932,-500.0,0.00019797,3]
[345476123,1734281452941,-500.0,0.00019797,3]
[345476124,1734281452950,-506.12,0.00019797,3]
[345476125,1734281452960,-500.0,0.00019797,2]
[345476126,1734281452970,-184.99,0.00019797,3]
[345476127,1734281452980,-374.84,0.00019797,3]
[345476128,1734281452991,-454.4,0.00019797,3]
[345476129,1734281453002,-159.15,0.00019797,3]
[345476130,1734281453011,-500.0,0.00019797,3]
[345476131,1734281453020,-500.0,0.00019797,3]
[345476132,1734281453029,-229.35,0.00019797,3]
[345476133,1734281453039,-594.97,0.00019797,3]
[345476134,1734281453052,-492.33,0.00019797,3]
[345476135,1734281453062,-405.59,0.00019797,3]
[345476136,1734281453071,-497.17,0.00019797,3]
[345476137,1734281453079,-515.95,0.00019797,3]
[345476138,1734281453089,-208.20547042,0.00019797,3]
[345476139,1734281453098,-287.6,0.00019797,3]
[345476140,1734281453107,-500.0,0.00019797,3]
[345476141,1734281453115,-483.89,0.00019797,3]
[345476142,1734281453124,-500.0,0.00019797,3]
[345476143,1734281453134,-322.23,0.00019797,3]
[345476144,1734281453142,-268.49,0.00019797,3]
[345476145,1734281453152,-151.29,0.00019797,3]
[345476146,1734281453160,-500.0,0.00019797,3]
[345476147,1734281453169,-278.38,0.00019797,3]
[345476148,1734281453178,-500.0,0.00019797,3]
[345476149,1734281453188,-500.0,0.00019797,3]
[345476150,1734281453197,-502.6,0.00019797,3]
[345476151,1734281453206,-171.9,0.00019797,3]
[345476152,1734281453215,-244.15,0.00019797,3]
[345476153,1734281453224,-543.54,0.00019797,3]
[345476154,1734281453233,-302.8,0.00019797,3]
[345476155,1734281453243,-500.0,0.00019797,3]
[345476156,1734281453253,-294.76105925,0.00019797,3]
[345476157,1734281453263,-472.79,0.00019797,3]
[345476158,1734281453272,-394.89,0.00019797,3]
[345476159,1734281453282,-163.22,0.00019797,3]
[345476160,1734281453292,-212.21,0.00019797,3]
[345476161,1734281453302,-500.0,0.00019797,3]
[345476162,1734281453311,-500.0,0.00019797,3]
[345476163,1734281453321,-368.68,0.00019797,3]
[345476164,1734281453330,-500.0,0.00019797,3]
[345476165,1734281453340,-500.0,0.00019797,3]
[345476166,1734281453350,-500.0,0.00019797,3]
[345476167,1734281453359,-500.0,0.00019797,3]
[345476168,1734281453369,-500.0,0.00019797,3]
[345476169,1734281453379,-500.0,0.00019797,3]
[345476170,1734281453389,-500.0,0.00019797,3]
[345476171,1734281453398,-303.42,0.00019797,3]
[345476172,1734281453407,-500.0,0.00019797,3]
[345476173,1734281453416,-500.0,0.00019797,3]
[345476174,1734281453426,-443.89695691,0.00019797,3]
[345476175,1734281453435,-433.66,0.00019797,3]
[345476176,1734281453444,-500.0,0.00019797,3]
[345476177,1734281453454,-500.0,0.00019797,3]
[345476178,1734281453464,-500.0,0.00019797,3]
[345476179,1734281453474,-500.0,0.00019797,3]
[345476180,1734281453483,-500.0,0.00019797,3]
[345476181,1734281453493,-500.0,0.00019797,3]
[345476182,1734281453503,-500.0,0.00019797,3]
[345476183,1734281453513,-500.0,0.00019797,3]
[345476184,1734281453523,-500.0,0.00019797,3]
[345476185,1734281453532,-500.0,0.00019797,3]
[345476186,1734281453542,-500.0,0.00019797,3]
[345476187,1734281453552,-500.0,0.00019797,3]
[345476188,1734281453562,-500.0,0.00019797,3]
[345476189,1734281453571,-500.0,0.00019797,3]
[345476190,1734281453582,-150.0,0.00019797,3]
[345476191,1734281453593,-500.0,0.00019797,3]
[345476192,1734281453603,-500.0,0.00019797,3]
[345476193,1734281453614,-500.0,0.00019797,3]
[345476194,1734281453624,-500.0,0.00019797,3]
[345476195,1734281453633,-500.0,0.00019797,3]
[345476196,1734281453643,-500.0,0.00019797,3]
[345476197,1734281453653,-500.0,0.00019797,3]
[345476198,1734281453662,-500.0,0.00019797,3]
[345476199,1734281453671,-500.0,0.00019797,3]
[345476200,1734281453680,-500.0,0.00019797,3]
[345476201,1734281453693,-500.0,0.00019797,3]
[345476202,1734281453704,-500.0,0.00019797,3]
[345476203,1734281453714,-500.0,0.00019797,3]
[345476204,1734281453723,-314.99,0.00019797,3]
[345476205,1734281453734,-500.0,0.00019797,3]
[345476206,1734281453744,-500.0,0.00019797,3]
[345476207,1734281453756,-500.0,0.00019797,3]
[345476208,1734281453767,-500.0,0.00019797,3]
[345476209,1734281453778,-500.0,0.00019797,3]
[345476210,1734281453788,-500.0,0.00019797,3]
[345476211,1734281453798,-500.0,0.00019797,3]
[345476212,1734281453811,-500.0,0.00019797,3]
[345476213,1734281453821,-500.0,0.00019797,3]
[345476214,1734281453830,-500.0,0.00019797,3]
[345476215,1734281453840,-500.0,0.00019797,3]
[345476216,1734281453850,-500.0,0.00019797,3]
[345476217,1734281453860,-500.0,0.00019797,3]
[345476218,1734281453870,-500.0,0.00019797,3]
[345476219,1734281453880,-500.0,0.00019797,3]
[345476220,1734281453890,-500.0,0.00019797,3]
[345476221,1734281453899,-500.0,0.00019797,3]
[345476222,1734281453909,-500.0,0.00019797,3]
[345476223,1734281453919,-500.0,0.00019797,3]
[345476224,1734281453928,-500.0,0.00019797,3]
[345476225,1734281453937,-500.0,0.00019797,3]
[345476226,1734281453947,-500.0,0.00019797,3]
[345476227,1734281453957,-500.0,0.00019797,3]
[345476228,1734281453967,-500.0,0.00019797,3]
[345476229,1734281453977,-500.0,0.00019797,3]
[345476230,1734281453987,-500.0,0.00019797,3]
[345476231,1734281453997,-500.0,0.00019797,3]
[345476232,1734281454008,-500.0,0.00019797,3]
[345476233,1734281454017,-503.76,0.00019797,3]
[345476234,1734281454027,-500.0,0.00019797,3]
[345476235,1734281454036,-500.0,0.00019797,3]
[345476236,1734281454046,-500.0,0.00019797,3]
[345476237,1734281454056,-409.71,0.00019797,3]
[345476238,1734281454066,-1453.75,0.00019797,3]
[345476239,1734281454076,-500.0,0.00019797,3]
[345476240,1734281454085,-500.0,0.00019797,3]
[345476241,1734281454094,-500.0,0.00019797,3]
[345476242,1734281454104,-500.0,0.00019797,3]
[345476243,1734281454114,-500.0,0.00019797,3]
[345476244,1734281454123,-500.0,0.00019797,3]
[345476245,1734281454132,-500.0,0.00019797,3]
[345476246,1734281454142,-500.0,0.00019797,3]
[345476247,1734281454151,-500.0,0.00019797,3]
[345476248,1734281454161,-500.0,0.00019797,3]
[345476249,1734281454171,-500.0,0.00019797,3]
[345476250,1734281454180,-500.0,0.00019797,3]
[345476251,1734281454191,-500.0,0.00019797,3]
[345476252,1734281454200,-157.694128,0.00019797,3]
[345476253,1734281454210,-334.689164,0.00019797,3]
[345476254,1734281454219,-522.29,0.00019797,3]
[345476255,1734281454228,-500.0,0.00019797,3]
[345476256,1734281454238,-362.88,0.00019797,3]
[345476257,1734281454248,-500.0,0.00019797,3]
[345476258,1734281454262,-150.0,0.00019797,4]
[345476259,1734281454271,-530.87,0.00019798,3]
[345476260,1734281454281,-202.16,0.00019798,3]
[345476261,1734281454290,-240.83,0.00019798,3]
[345476262,1734281454300,-358.22,0.00019798,3]
[345476263,1734281454310,-355.38,0.00019798,3]
[345476264,1734281454319,-474.02,0.00019798,3]
[345476265,1734281454329,-500.0,0.00019798,3]
[345476266,1734281454339,-234.98,0.00019798,3]
[345476267,1734281454348,-566.6,0.00019798,3]
[345476268,1734281454357,-403.69,0.00019798,3]
[345476269,1734281454367,-365.31,0.00019798,3]
[345476270,1734281454377,-500.0,0.00019798,3]
[345476271,1734281454386,-275.61,0.00019798,3]
[345476272,1734281454395,-500.0,0.00019798,3]
[345476273,1734281454405,-593.12,0.00019798,3]
[345476274,1734281454415,-371.77,0.00019798,3]
[345476275,1734281454425,-353.17,0.00019798,2]
[345476276,1734281454434,-500.0,0.00019798,3]
[345476277,1734281454443,-642.57,0.00019798,3]
[345476278,1734281454454,-500.0,0.00019798,3]
[345476279,1734281454463,-500.0,0.00019798,3]
[345476280,1734281454473,-170.33,0.00019798,3]
[345476281,1734281454482,-457.12,0.00019798,3]
[345476282,1734281454491,-229.59,0.00019798,3]
[345476283,1734281454502,-298.38,0.00019798,3]
[345476284,1734281454511,-172.56,0.00019798,3]
[345476285,1734281454521,-500.0,0.00019798,3]
[345476286,1734281454530,-184.13,0.00019798,3]
[345476287,1734281454540,-488.53,0.00019798,3]
[345476288,1734281454550,-500.0,0.00019798,3]
[345476289,1734281454559,-218.3,0.00019798,3]
[345476290,1734281454568,-209.26,0.00019798,3]
[345476291,1734281454578,-500.0,0.00019798,3]
[345476292,1734281454588,-500.0,0.00019798,3]
[345476293,1734281454598,-500.0,0.00019798,3]
[345476294,1734281454608,-226.32,0.00019798,3]
[345476295,1734281454617,-500.0,0.00019798,3]
[345476296,1734281454626,-231.56,0.00019798,3]
[345476297,1734281454636,-510.68,0.00019798,3]
[345476298,1734281454645,-500.0,0.00019798,3]
[345476299,1734281454655,-489.3,0.00019798,3]
[345476300,1734281454666,-365.56,0.00019798,3]
[345476301,1734281454676,-314.32,0.00019798,3]
[345476302,1734281454685,-641.22,0.00019798,3]
[345476303,1734281454695,-500.0,0.00019798,3]
[345476304,1734281454704,-360.38,0.00019798,3]
[345476305,1734281454713,-500.0,0.00019798,3]
[345476306,1734281454723,-251.44,0.00019798,3]
[345476307,1734281454733,-645.03,0.00019798,3]
[345476308,1734281454743,-500.0,0.00019798,3]
[345476309,1734281454754,-500.0,0.00019798,3]
[345476310,1734281454766,-500.0,0.00019798,3]
[345476311,1734281454776,-500.0,0.00019798,3]
[345476312,1734281454785,-580.34,0.00019798,3]
[345476313,1734281454795,-151.0,0.00019798,2]
[345476314,1734281454807,-500.0,0.00019798,3]
[345476315,1734281454817,-151.0,0.00019798,2]
[345476316,1734281454827,-866.25,0.00019798,3]
[345476317,1734281454836,-385.69554,0.00019798,2]
[345476318,1734281454845,-385.69554,0.00019798,2]
[345476319,1734281454857,-151.0,0.00019798,2]
[345476320,1734281454867,-151.0,0.00019798,2]
[345476321,1734281454878,-151.0,0.00019798,2]
[345476322,1734281454890,-1878.679,0.00019799,2]
[345476323,1734281454899,-521.76,0.00019799,3]
[345476324,1734281454909,-211.85,0.00019799,3]
[345476325,1734281454918,-500.0,0.00019799,3]
[345476326,1734281454927,-500.0,0.00019799,3]
[345476327,1734281454937,-500.0,0.00019799,3]
[345476328,1734281454947,-500.0,0.00019799,3]
[345476329,1734281454956,-500.0,0.00019799,3]
[345476330,1734281454966,-500.0,0.00019799,3]
[345476331,1734281454975,-500.0,0.00019799,3]
[345476332,1734281454984,-385.97927728,0.00019799,3]
[345476333,1734281454994,-500.0,0.00019799,3]
[345476334,1734281455004,-500.0,0.00019799,3]
[345476335,1734281455014,-500.0,0.00019799,2]
[345476336,1734281455023,-500.0,0.00019799,3]
[345476337,1734281455150,-500.0,0.00019799,3]
[345476338,1734281455160,-500.0,0.00019799,3]
[345476339,1734281455169,-500.0,0.00019799,3]
[345476340,1734281455178,-500.0,0.00019799,3]
[345476341,1734281455187,-500.0,0.00019799,3]
[345476342,1734281455197,-500.0,0.00019799,3]
[345476343,1734281455206,-500.0,0.00019799,3]